[Event "CZE-ch U16 Open 2023"]
[Site "Teplice"]
[Date "2023.03.17"]
[Round "8.7"]
[White "Pelc, Adam"]
[Black "Slaby, Matej"]
[Result "1/2-1/2"]
[ECO "B10"]
[WhiteElo "1871"]
[BlackElo "1932"]
[Annotator "TA"]
[PlyCount "54"]
[EventDate "2023.03.09"]
[EventType "swiss"]
[EventCountry "CZE"]
[SourceTitle "playchess.com"]
[Source "ChessBase"]
[SourceQuality "1"]
[TimeControl "40/5400+30:1800+30"]

{[%evp 9,54,-1,28,-7,0,-17,0,0,-4,-4,-4,-4,-4,0,-6,-7,-7,-10,-4,-8,0,0,0,0,0,-5,0,0,0,-8,0,0,0,-6,0,0,0,0,0,0,0,0,0,0,0,0,0]} 1. e4 {[%emt 0:00:03]} c6 {[%emt 0:00:10]} 2. e5 {[%emt 0:01:07]} d5 {[%emt 0:01:01]} 3. exd6 {[%emt 0:00:43]} exd6 {[%emt 0:00:09]} 4. Nf3 {[%emt 0:00:18]} d5 {[%emt 0:00:31]} 5. d4 {[%emt 0:00:54]} Bg4 {[%emt 0:00:56]} 6. Be2 {[%emt 0:00:48] B10: Caro-Kann: 2 d3 and 2 c4.} Nf6 {[%emt 0:02:12] The position is equal.} 7. Bg5 {[%emt 0:02:04] [#]} Be7 $146 {[%emt 0:01:15]} ({Predecessor:} 7... Nbd7 8. Nbd2 Qc7 9. h3 Bh5 10. O-O Bd6 11. Re1 O-O 12. b3 Rfe8 13. c4 h6 {0-1 Hof,A-Tischer,U KO-21206 freechess.de 2018}) 8. Nbd2 {[%emt 0:04:21]} Nbd7 {[%emt 0:01:52]} 9. O-O {[%emt 0:01:02]} O-O {[%emt 0:01:24]} 10. h3 {[%emt 0:03:54]} Bh5 {[%emt 0:02:45]} 11. Re1 {[%emt 0:03:28]} Re8 {[%emt 0:00:35]} 12. Ne5 {[%emt 0:07:28]} Bxe2 {[%emt 0:01:43]} 13. Rxe2 {[%emt 0:00:46]} Nxe5 {[%emt 0:08:33]} 14. Rxe5 {[%emt 0:00:39]} Nd7 {[%emt 0:00:41]} 15. Bxe7 {[%emt 0:01:06]} Rxe7 {[%emt 0:00:14]} 16. Rxe7 {[%emt 0:00:06]} Qxe7 {[%emt 0:00:06]} 17. Qe1 {[%emt 0:00:04]} Re8 {[%emt 0:01:04]} 18. Qxe7 {[%emt 0:00:13]} Rxe7 $11 {[%emt 0:00:01][%mdl 4096] Endgame KRN-KRN} 19. Kf1 {[%emt 0:00:14]} Kf8 {[%emt 0:00:38]} 20. Re1 {[%emt 0:00:09]} h6 {[%emt 0:00:56]} 21. c3 {[%emt 0:00:51]} Rxe1+ {[%emt 0:00:19]} 22. Kxe1 {[%emt 0:00:19] KN-KN} Ke7 {[%emt 0:00:06]} 23. Ke2 {[%emt 0:00:05]} Ke6 {[%emt 0:00:07]} 24. Ke3 {[%emt 0:00:24]} Ke7 {[%emt 0:00:11]} 25. Ke2 {[%emt 0:00:05]} Ke6 {[%emt 0:00:04]} 26. Ke3 {[%emt 0:00:05]} Ke7 {[%emt 0:00:11]} 27. Ke2 {[%emt 0:00:06]} Ke6 {[%emt 0:00:10] An uneventful encounter.   Weighted Error Value: White=0.04 (flawless) /Black=0.04 (flawless)} 1/2-1/2

[Event "CZE-ch U16 Open 2023"]
[Site "Teplice"]
[Date "2023.03.17"]
[Round "8.8"]
[White "Vilimek, Vit"]
[Black "Davidek, Zdenek"]
[Result "1-0"]
[ECO "B34"]
[WhiteElo "2018"]
[BlackElo "1957"]
[Annotator "TA"]
[PlyCount "65"]
[EventDate "2023.03.09"]
[EventType "swiss"]
[EventCountry "CZE"]
[SourceTitle "playchess.com"]
[Source "ChessBase"]
[SourceQuality "1"]
[TimeControl "40/5400+30:1800+30"]

{[%evp 13,65,-5,0,-10,-5,-20,-7,-14,7,-8,32,8,37,27,68,60,56,18,14,-184,-175,-184,0,0,146,141,150,142,136,118,416,416,416,416,450,435,432,401,535,481,467,432,562,460,613,556,737,731,720,716,694,694,1412,1285]} 1. e4 {[%emt 0:00:21]} c5 {[%emt 0:00:04]} 2. Nf3 {[%emt 0:00:07]} Nc6 {[%emt 0:00:15]} 3. d4 {[%emt 0:00:05]} cxd4 {[%emt 0:00:05]} 4. Nxd4 {[%emt 0:00:02]} Nf6 {[%emt 0:00:07]} 5. Nc3 {[%emt 0:00:04]} e5 {[%emt 0:00:04]} 6. Nxc6 {[%emt 0:00:24]} bxc6 {[%emt 0:00:05]} 7. Bd3 {[%emt 0:00:05]} Bb4 {[%emt 0:00:07]} 8. O-O {[%emt 0:00:04] B33: Sicilian: Pelikan and Sveshnikov Variations.} O-O {[%emt 0:00:18]} 9. f4 {[%emt 0:00:04]} d6 {[%emt 0:00:32] [#]} 10. Kh1 $146 {[%emt 0:00:19] The position is equal.} ({Predecessor:} 10. f5 d5 11. Qf3 Bxc3 12. bxc3 dxe4 13. Bxe4 Nxe4 14. Qxe4 Qd5 15. Qg4 Qc5+ {1-0 Robles,A-Jones,C (1742) CAN/LC2016 ICCF email}) 10... Re8 {[%emt 0:20:33]} 11. Qf3 {[%emt 0:02:40]} (11. fxe5 {keeps more tension.} Ng4 12. exd6 Nxh2 13. Rf4) 11... Qc7 {[%emt 0:05:00]} 12. Bd2 {[%emt 0:03:56]} Rb8 {[%emt 0:03:53]} 13. a3 {[%emt 0:10:55]} Ba5 {[%emt 0:03:50]} 14. b4 {[%emt 0:01:12] fxe5 is the strong threat.} Bb6 {[%emt 0:00:22]} 15. Na4 {[%emt 0:01:08]} d5 {[%emt 0:39:56] Hoping for ...dxe4.} 16. Rae1 {[%emt 0:06:29] [#]} (16. fxe5 $11 dxe4 17. Bxe4 Nxe4 18. Qxe4) 16... dxe4 $1 $19 {[%emt 0:01:16]} 17. Bxe4 {[%emt 0:02:29] [#]} Nxe4 $2 {[%emt 0:00:01]} (17... Ba6 $1 $19 {aiming for ...Rbd8.} 18. fxe5 Nxe4 19. Rxe4 Bxf1 20. Qxf1 c5) 18. Rxe4 $11 {[%emt 0:01:43]} Bd4 {[%emt 0:02:40] Black is now going downhill.} (18... Bf5 $11 19. Rxe5 Bxc2 20. Nxb6 axb6) 19. fxe5 $16 {[%emt 0:07:07]} Bxe5 {[%emt 0:01:54]} 20. Nc5 {[%emt 0:03:54]} f6 {[%emt 0:01:35]} 21. Bf4 {[%emt 0:04:15] White is more active.} Be6 $2 {[%emt 0:01:25][%mdl 8192] Prevents Qb3} (21... Qd6 $16) 22. Bxe5 $18 {[%emt 0:02:26]} fxe5 {[%emt 0:00:06]} 23. Na6 $1 {[%emt 0:02:11][%csl LRb8,LRc7]} Qc8 {[%emt 0:01:27]} 24. Nxb8 {[%emt 0:03:56]} Qxb8 {[%emt 0:05:09]} 25. c4 {[%emt 0:01:13] Prevents Bd5.} a5 {[%emt 0:00:02]} 26. Qc3 {[%emt 0:00:34] White is clearly winning.} axb4 {[%emt 0:00:07]} 27. axb4 {[%emt 0:00:24]} Rf8 {[%emt 0:02:05][%cal Rf8f1]} 28. Rfe1 {[%emt 0:02:09]} Qa7 {[%emt 0:00:41]} 29. Rxe5 {[%emt 0:02:17]} Qf2 {[%emt 0:00:06][%cal Of2f1] ( -> ...Qf1+!)} 30. h3 {[%emt 0:00:15]} (30. Rxe6 $2 {gets mated.} Qf1+ 31. Rxf1 Rxf1#) 30... Bf7 {[%emt 0:02:17]} 31. b5 {[%emt 0:06:11]} cxb5 {[%emt 0:00:11]} 32. cxb5 {[%emt 0:00:10]} Rd8 {[%emt 0:00:15]} 33. Qc7 {[%emt 0:01:23] Weighted Error Value: White=0.31/Black=0.63} 1-0

[Event "CZE-ch U16 Open 2023"]
[Site "Teplice"]
[Date "2023.03.17"]
[Round "8.9"]
[White "Svoboda, Daniel"]
[Black "Kubin, Tomas Daniel"]
[Result "1-0"]
[ECO "B34"]
[WhiteElo "1748"]
[BlackElo "1936"]
[Annotator "TA"]
[PlyCount "51"]
[EventDate "2023.03.09"]
[EventType "swiss"]
[EventCountry "CZE"]
[SourceTitle "playchess.com"]
[Source "ChessBase"]
[SourceQuality "1"]
[TimeControl "40/5400+30:1800+30"]

{[%evp 18,51,7,0,25,0,0,0,0,-13,0,-62,0,0,71,62,239,243,244,242,354,335,458,384,383,389,377,374,29986,29987,29987,29988,29988,29989,29993,29994]} 1. e4 {[%emt 0:00:05]} c5 {[%emt 0:00:07]} 2. Nf3 {[%emt 0:00:21]} Nc6 {[%emt 0:00:11]} 3. d4 {[%emt 0:00:22]} cxd4 {[%emt 0:00:17]} 4. Nxd4 {[%emt 0:00:12]} Nf6 {[%emt 0:00:13]} 5. Nc3 {[%emt 0:00:17]} e5 {[%emt 0:00:16]} 6. Nf5 {[%emt 0:01:02]} d5 {[%emt 0:06:06]} 7. exd5 {[%emt 0:00:52]} Bxf5 {[%emt 0:02:12]} 8. dxc6 {[%emt 0:00:14]} bxc6 {[%emt 0:02:12]} 9. Qf3 {[%emt 0:00:57]} Qd7 {[%emt 0:06:18]} 10. Bc4 {[%emt 0:01:48]} Bd6 {[%emt 0:12:50] B33: Sicilian: Pelikan and Sveshnikov Variations.} 11. O-O {[%emt 0:12:56]} O-O {[%emt 0:02:24]} 12. Bg5 {[%emt 0:09:21]} e4 {[%emt 0:07:36] The position is equal.} 13. Qe2 {[%emt 0:03:40] Strongly threatening Bxf6.} Rae8 {[%emt 0:02:16] [#]} (13... Nd5 {simplifies} 14. Bxd5 cxd5 15. Nxd5 Bxh2+ 16. Kxh2 Qxd5 17. Bf4 Qe6) 14. h3 $146 {[%emt 0:13:50] [#]} ({Better is} 14. Bxf6 $11 gxf6 15. Rad1) ({Predecessor:} 14. Bxf6 gxf6 15. Rad1 Qc7 16. Qh5 Bc8 17. Qh4 Bf4 18. Ne2 Be5 19. Ng3 f5 20. c3 {0-1 Lupu,S (2135)-Moal,A (2340) Val Thorens op 1994 (6)}) 14... Bxh3 {[%emt 0:13:43]} 15. Bxf6 $1 $11 {[%emt 0:12:54] Threatens to win with Bh4.} gxf6 {[%emt 0:12:23]} (15... Bg4 $1 $11 16. Qe3 (16. f3 $2 exf3 17. Qd3 gxf6 $19) 16... gxf6) 16. Nxe4 $1 $16 {[%emt 0:08:07]} (16. gxh3 Qxh3) 16... Rxe4 {[%emt 0:07:15] A mistake that costs the game.} 17. Qxe4 $18 {[%emt 0:01:21]} Bf5 {[%emt 0:01:25]} 18. Qh4 {[%emt 0:03:55]} Be5 {[%emt 0:01:55]} (18... Kg7 $142 19. Rad1 Bxc2) 19. Rad1 {[%emt 0:03:43][%cal Ba1d1,Bd1d3,Bd3d7][%mdl 32]} Qb7 {[%emt 0:00:51]} 20. Bd3 {[%emt 0:04:21]} Bg6 {[%emt 0:03:29]} 21. Bxg6 {[%emt 0:04:25]} fxg6 {[%emt 0:00:08]} 22. Rd3 {[%emt 0:01:15] [#] Rfd1 is the strong threat.} Qxb2 $2 {[%emt 0:02:28]} (22... h5 $18 23. Rfd1 Rf7) 23. Rd7 {[%emt 0:01:23][%csl Gd7,LRa7,LRh7][%cal Rh4h7] White mates.} h5 {[%emt 0:01:17]} 24. Qc4+ {[%emt 0:03:38]} Kh8 {[%emt 0:00:07]} 25. Qc5 {[%emt 0:00:39][%cal Rc5f8]} Re8 {[%emt 0:02:40]} 26. Qxa7 {[%emt 0:00:25] Weighted Error Value: White=0.14 (very precise) /Black=0.81} 1-0

[Event "CZE-ch U16 Open 2023"]
[Site "Teplice"]
[Date "2023.03.17"]
[Round "8.10"]
[White "Hozda, Max"]
[Black "Zezula, Jakub"]
[Result "1/2-1/2"]
[ECO "D11"]
[WhiteElo "2067"]
[BlackElo "1963"]
[Annotator "TA"]
[PlyCount "66"]
[EventDate "2023.03.09"]
[EventType "swiss"]
[EventCountry "CZE"]
[SourceTitle "playchess.com"]
[Source "ChessBase"]
[SourceQuality "1"]
[TimeControl "40/5400+30:1800+30"]

{[%evp 20,66,12,9,14,14,23,16,16,11,12,7,14,0,10,-15,9,-6,20,29,106,101,81,89,79,114,166,0,0,0,15,0,0,-85,-78,-81,-77,-69,-76,-289,0,0,0,0,0,0,0,0,0]} 1. Nf3 {[%emt 0:00:06]} d5 {[%emt 0:00:07]} 2. d4 {[%emt 0:01:02]} Nf6 {[%emt 0:00:07]} 3. c4 {[%emt 0:00:37]} c6 {[%emt 0:00:06]} 4. e3 {[%emt 0:00:13]} Bg4 {[%emt 0:00:39]} 5. Nc3 {[%emt 0:00:16]} e6 {[%emt 0:00:08]} 6. h3 {[%emt 0:00:07]} Bh5 {[%emt 0:00:17]} 7. Be2 {[%emt 0:07:37]} Nbd7 {[%emt 0:00:33]} 8. O-O {[%emt 0:05:20]} Be7 {[%emt 0:02:34]} 9. b3 {[%emt 0:00:46]} O-O {[%emt 0:00:49]} 10. Bb2 {[%emt 0:00:18]} Ne4 {[%emt 0:06:45]} 11. Nxe4 {[%emt 0:12:30]} dxe4 {[%emt 0:00:01] A12: English Opening: 1...c6 with b3 by White.} 12. Ne5 {[%emt 0:04:07]} Bxe2 {[%emt 0:00:48]} 13. Qxe2 {[%emt 0:00:04] [#]} f5 $146 {[%emt 0:02:06]} ({Predecessor:} 13... Nxe5 14. dxe5 Qd3 15. Qg4 Rad8 16. Bd4 c5 17. Rfd1 Qc2 18. Rdc1 Qd3 {½-½ Laffont,J (1865)-Shapovalov,S (1732) RC-2018-0-00218 2017}) 14. Nxd7 {[%emt 0:01:26]} Qxd7 {[%emt 0:00:08]} 15. Rad1 {[%emt 0:00:48]} Rad8 {[%emt 0:01:03]} 16. a3 {[%emt 0:01:29]} Bd6 {[%emt 0:02:28]} 17. f4 {[%emt 0:07:16]} Be7 {[%emt 0:08:58]} 18. g4 {[%emt 0:05:19]} fxg4 {[%emt 0:16:27]} 19. hxg4 {[%emt 0:04:07]} Rf6 {[%emt 0:04:05] [#]} (19... Qe8 $11) 20. d5 $1 $16 {[%emt 0:12:14][%mdl 512]} Rh6 {[%emt 0:02:55][%cal Re6d5] [#]} (20... exd5 21. Bxf6) 21. d6 {[%emt 0:03:57]} Bf6 {[%emt 0:02:23]} (21... Bxd6 $2 22. c5 Qe7 23. cxd6 Rxd6 24. Rxd6 Qxd6 25. Rd1 $18) 22. c5 {[%emt 0:02:03]} ({Don't play} 22. g5 Rg6 $11) 22... Rg6 {[%emt 0:03:45]} (22... Bxb2 $16 {was worth a try.} 23. Qxb2 Rh3) 23. Rf2 $2 {[%emt 0:19:44]} (23. Bxf6 $1 $18 gxf6 24. Kf2) 23... Bxb2 $11 {[%emt 0:01:14]} 24. Qxb2 {[%emt 0:00:08] Strongly threatening Rg2.} Rxg4+ {[%emt 0:00:04]} 25. Kf1 {[%emt 0:02:11]} Qf7 {[%emt 0:07:33]} 26. Qc2 {[%emt 0:01:09]} (26. Qe5 $11 {keeps the balance.}) 26... Qh5 $17 {[%emt 0:07:18] ...Rh4 would be deadly.} 27. Qxe4 {[%emt 0:02:57] [#]} Rh4 $1 {[%emt 0:01:38]} (27... Qxc5 $2 28. Qxe6+ Kh8 29. Qxg4 $18) 28. Qxe6+ {[%emt 0:01:42]} Kh8 {[%emt 0:00:09]} 29. Rdd2 $2 {[%emt 0:03:17] [#]} (29. Rd4 $17 {was forced.}) 29... Rh1+ $2 {[%emt 0:08:59]} (29... Qxc5 $2 30. Qe7 Rh1+ 31. Kg2 $18) ({Black should try} 29... Re8 $1 $19 30. Qxe8+ Qxe8) 30. Kg2 $11 {[%emt 0:00:02][%cal Bf1g2,Bg2g3,Bg3f3][%mdl 32] Black must now prevent d7. The position is equal.} Rh2+ {[%emt 0:01:16]} 31. Kg3 {[%emt 0:01:05]} Qh4+ {[%emt 0:00:15]} (31... Rh1 $2 32. d7 $18) 32. Kf3 {[%emt 0:00:09] Some like it hot. Active counter play!} Qh5+ {[%emt 0:00:15]} 33. Kg3 $1 {[%emt 0:02:05]} ({Avoid the trap} 33. Ke4 $2 Re8 $19) 33... Qh4+ {[%emt 0:00:06] Weighted Error Value: White=0.36/Black=0.32} (33... Rh1 $2 34. d7 $18) 1/2-1/2

[Event "CZE-ch U16 Open 2023"]
[Site "Teplice"]
[Date "2023.03.17"]
[Round "8.11"]
[White "Sigut, Ondrej"]
[Black "Tesar, Jakub"]
[Result "1/2-1/2"]
[ECO "B51"]
[WhiteElo "1804"]
[BlackElo "1960"]
[Annotator "TA"]
[PlyCount "60"]
[EventDate "2023.03.09"]
[EventType "swiss"]
[EventCountry "CZE"]
[SourceTitle "playchess.com"]
[Source "ChessBase"]
[SourceQuality "1"]
[TimeControl "40/5400+30:1800+30"]

{[%evp 14,60,14,10,9,-14,-14,-14,-9,-9,-10,-25,12,0,2,3,14,7,34,6,22,22,25,26,31,21,20,15,32,29,32,33,114,38,51,49,66,45,40,45,42,24,33,6,10,0,0,0,18]} 1. e4 {[%emt 0:00:02]} c5 {[%emt 0:00:05]} 2. Nf3 {[%emt 0:00:20]} d6 {[%emt 0:00:08]} 3. Bb5+ {[%emt 0:00:27]} Nd7 {[%emt 0:00:10]} 4. d4 {[%emt 0:01:41]} cxd4 {[%emt 0:00:12]} 5. Qxd4 {[%emt 0:00:53]} a6 {[%emt 0:00:08]} 6. Bxd7+ {[%emt 0:01:25]} Bxd7 {[%emt 0:00:06]} 7. O-O {[%emt 0:01:25]} Nf6 {[%emt 0:00:12]} 8. Bg5 {[%emt 0:02:47]} e6 $1 {[%emt 0:00:13] 8...e6 is better than 8...h6. B51: Sicilian: Moscow Variation (3 Bb5+) without 3...Bd7.} 9. e5 {[%emt 0:12:06]} dxe5 {[%emt 0:02:02]} 10. Nxe5 {[%emt 0:01:21]} Bb5 {[%emt 0:09:13][%csl LRd4,LRf1]} 11. Qxd8+ {[%emt 0:03:20]} Rxd8 {[%emt 0:00:07]} 12. c4 {[%emt 0:01:19]} Bc6 {[%emt 0:29:04] [#]} (12... Bd6 $5 {[%cal Rd6e5]} 13. Nxf7 Kxf7 14. cxb5 axb5 $11) 13. Nxc6 $146 {[%emt 0:09:49]} ({Predecessor:} 13. Nc3 Bb4 14. Nxc6 bxc6 15. Ne2 Bd2 16. Bxf6 gxf6 17. Rfd1 Ke7 18. Kf1 f5 19. Nc1 {½-½ Arnott,J (2063)-O'Gorman,T (2376) Hastings Masters op 2022 (3)}) 13... bxc6 {[%emt 0:00:06]} 14. Nc3 {[%emt 0:04:02]} Be7 {[%emt 0:01:08]} 15. Rfd1 {[%emt 0:04:20]} Rd7 {[%emt 0:13:29]} 16. Rxd7 {[%emt 0:11:00]} Kxd7 {[%emt 0:00:07]} 17. Rd1+ {[%emt 0:00:35]} Kc8 {[%emt 0:00:22]} 18. Kf1 {[%emt 0:06:30]} Rd8 {[%emt 0:09:12]} 19. Rxd8+ {[%emt 0:05:00]} Kxd8 $14 {[%emt 0:00:06][%mdl 4096] Endgame KBN-KBN} 20. h3 {[%emt 0:03:52]} Kc7 {[%emt 0:02:15]} 21. Ke2 {[%emt 0:01:45]} Kd6 {[%emt 0:01:39]} 22. Kd3 {[%emt 0:02:32]} e5 {[%emt 0:13:22]} (22... Kd7 $14) 23. b4 {[%emt 0:06:55] White is more active.} (23. Bxf6 $16 gxf6 24. g4) 23... Kc7 {[%emt 0:03:34]} 24. a3 {[%emt 0:04:01]} a5 {[%emt 0:01:13]} 25. c5 {[%emt 0:01:00]} axb4 {[%emt 0:00:09]} 26. axb4 {[%emt 0:00:06]} Ng8 {[%emt 0:01:05]} 27. Bxe7 {[%emt 0:03:15]} Nxe7 {[%emt 0:00:06]} 28. Kc4 {[%emt 0:01:03]} f5 {[%emt 0:00:52] The position is equal.} 29. b5 {[%emt 0:01:00]} cxb5+ {[%emt 0:00:06]} 30. Nxb5+ {[%emt 0:01:02]} Kc6 {[%emt 0:00:07] Weighted Error Value: White=0.10 (very precise) /Black=0.16 (very precise)} 1/2-1/2

[Event "CZE-ch U16 Open 2023"]
[Site "Teplice"]
[Date "2023.03.17"]
[Round "8.12"]
[White "Mohapl, Tomas"]
[Black "Mrazek, Adam"]
[Result "1-0"]
[ECO "B34"]
[WhiteElo "1946"]
[BlackElo "1745"]
[Annotator "TA"]
[PlyCount "93"]
[EventDate "2023.03.09"]
[EventType "swiss"]
[EventCountry "CZE"]
[SourceTitle "playchess.com"]
[Source "ChessBase"]
[SourceQuality "1"]
[TimeControl "40/5400+30:1800+30"]

{[%evp 16,92,7,0,0,-8,0,0,8,-8,-12,-9,-1,-11,-11,-21,-14,-31,-28,-21,44,6,38,25,56,60,46,52,44,39,43,44,70,74,76,84,62,85,78,0,40,0,158,41,345,118,162,74,187,146,180,163,177,106,450,439,431,208,1394,1397,29988,910,1706,561,546,516,29989,29990,29990,29980,29980,29981,29981,29982,5515,4782,29992,29990,29999]} 1. e4 c5 2. Nf3 Nc6 3. d4 cxd4 4. Nxd4 Nf6 5. Nc3 e5 6. Ndb5 d6 7. Nd5 Nxd5 8. exd5 Nb8 9. Qf3 {9.a4 is a critical line.} a6 {B33: Sicilian: Pelikan and Sveshnikov Variations.} 10. Qa3 Be7 11. Bg5 {[%mdl 64] Deflection} f6 {The position is equal.} 12. Bd2 O-O 13. Bb4 {[%cal Rb4d6]} Qd7 14. O-O-O (14. Bxd6 $2 {is the wrong capture.} axb5 15. Qxa8 Qxd6 $19) (14. Nxd6 a5 15. Bc5 b6 $17) 14... Rd8 15. Kb1 {[%cal Of2f4]} b6 $1 {And now ...Bb7 would win.} 16. Bd2 Qb7 17. Nc3 Bf5 {[#]} (17... Nd7 $11) 18. Be3 $146 ({Predecessor:} 18. Be2 b5 19. Qb4 Nd7 20. g4 Bg6 21. h4 Nb6 22. h5 Bf7 23. Qe4 Nxd5 24. Ka1 {0-1 Appeldorn,D-Kahl,F DESC SZ046 email 2005}) 18... Bg6 19. g4 Nd7 20. h4 {[%cal Bh2h4,Bh4h5][%mdl 32]} Nc5 21. h5 Be8 22. Ne2 Rdc8 23. Ng3 Bd7 24. Nf5 Bf8 25. f4 {White has more active pieces.} b5 26. Bxc5 Rxc5 27. Bg2 ({White should play} 27. fxe5 $16 {h6 would be deadly.} dxe5 28. Qd3) 27... b4 28. Qe3 a5 $2 (28... Bxf5 $11 29. gxf5 Rc3) 29. Be4 (29. fxe5 $1 $16 {Threatens to win with e6.} fxe5 30. Be4) 29... Qc8 $2 {[%mdl 8192]} (29... Re8 $1 $14) 30. Qd3 $2 (30. fxe5 $1 $18 fxe5 31. Rdf1) 30... Bb5 31. Qh3 (31. Qf3 $18) 31... Ba4 (31... exf4 $16 32. Nd4 Bd7) 32. Rd2 Rc4 ({Not} 32... exf4 33. Nd4 $16) 33. Qg2 Bd7 {[#]} 34. Ne3 (34. fxe5 $1 $18 fxe5 35. Rf2) 34... Rc5 $2 {[%mdl 8192] [#]} (34... Rc3 $16 35. Nd1 (35. bxc3 bxc3 36. Rd3 Qb8+ 37. Kc1 Qb2+ 38. Kd1 exf4 $16) 35... Rc5) 35. fxe5 $1 $18 fxe5 36. Bd3 {Black is weak on the light squares} (36. Rf2 $142) 36... a4 $2 (36... Bb5 37. Bxb5 Rxb5) 37. Qe4 {[%csl LRb4,LRh7]} b3 38. cxb3 (38. Qxh7+ $142 Kf7 39. Qg6+ Ke7 40. Qg5+ Kf7 41. Rf2+ Bf5 42. Nxf5 bxc2+ 43. Kc1) 38... axb3 39. a3 (39. Qxh7+ $142 Kf7 40. Rf2+ Ke7 41. a3) 39... g6 40. hxg6 {Intending g7 and mate.} h6 {[#]} (40... Ra4 $18) 41. g7 $1 {[%mdl 512]} Bxg7 (41... Kf7 42. g8=Q+) 42. Qh7+ Kf8 43. Rf2+ {[%cal Bd2f2,Bf2f8,Bf8e8][%mdl 96] Deflection} Ke7 44. Qxg7+ Kd8 45. Rf8+ (45. Rxh6 $2 Rc1#) 45... Be8 46. Bg6 {[%csl Gg6][%cal Rf8e8]} Rxa3 47. Rxe8# {Magnificent play by Mohapl!   Weighted Error Value: White=0.38/Black=0.84} 1-0